[Event "FIDE Womens Candidates 2024"]
[Site "Toronto"]
[Date "2024.04.04"]
[Round "1.3"]
[White "Lei, Tingjie"]
[Black "Tan, Zhongyi"]
[Result "0-1"]
[ECO "D35"]
[WhiteElo "2550"]
[BlackElo "2521"]
[Annotator "TA"]
[PlyCount "104"]
[EventDate "2024.04.02"]
[EventType "tourn"]
[EventCountry "CAN"]
[SourceTitle "playchess.com"]
[Source "ChessBase"]
[SourceQuality "1"]
[TimeControl "40/5400+30:1800+30"]

{[%evp 12,104,19,23,29,35,15,25,13,17,20,21,16,15,22,24,16,12,14,0,33,25,32,39,38,0,0,0,2,0,0,16,5,0,29,10,40,-26,-26,-18,-24,-29,-30,-49,-58,-100,-95,-83,-94,-102,-89,-85,-85,-103,-100,-121,-95,-112,-112,-124,-116,-118,-105,-128,-112,-112,-125,-118,-70,-251,-214,-349,-347,-691,-691,-1714,-3042,-1116,-801,-4606,-637,-5081,-4978,-997,-1354,-29976,-29977,-29978,-29979,-29984,-29985,-29985,-29986,-29986,-29985]} 1. d4 {[%emt 0:00:20]} Nf6 {[%emt 0:00:12]} 2. c4 {[%emt 0:00:13]} e6 {[%emt 0:00:10]} 3. Nc3 {[%emt 0:00:09]} d5 {[%emt 0:01:19]} 4. cxd5 {[%emt 0:00:15]} exd5 {[%emt 0:00:05]} 5. Bg5 {[%emt 0:00:13]} Be7 {[%emt 0:00:12]} 6. e3 {[%emt 0:00:27]} h6 {[%emt 0:00:10]} 7. Bh4 {[%emt 0:00:20]} Bg4 {[%emt 0:00:52]} 8. Qc2 {[%emt 0:00:32]} O-O {[%emt 0:00:27]} 9. h3 {[%emt 0:00:21]} Be6 {[%emt 0:00:10] White has an edge.} 10. Nf3 {[%emt 0:02:30]} Ne4 {[%emt 0:00:36]} 11. Nxe4 {[%emt 0:08:54] And now Bxe7 would win.} Bxh4 {[%emt 0:00:15]} 12. Nc5 {[%emt 0:00:42]} Bc8 {[%emt 0:00:11]} 13. Nxh4 {[%emt 0:06:51]} Qxh4 {[%emt 0:00:10]} 14. Be2 {[%emt 0:04:00]} c6 {[%emt 0:01:02]} 15. b4 {[%emt 0:02:24][%cal Bb2b4,Bb4b5][%mdl 32]} Re8 {[%emt 0:04:17]} 16. O-O {[%emt 0:02:54]} Qg5 {[%emt 0:05:41]} 17. Kh1 {[%emt 0:05:30]} Nd7 {[%emt 0:03:24]} 18. b5 {[%emt 0:07:35]} Nxc5 {[%emt 0:08:47]} 19. Qxc5 {[%emt 0:00:12]} Re6 {[%emt 0:00:50]} 20. bxc6 {[%emt 0:08:55]} Rg6 {[%emt 0:05:37]} 21. Bf3 {[%emt 0:07:09] Strongly threatening c7.} bxc6 {[%emt 0:00:08]} 22. Qa5 {[%emt 0:01:39]} h5 {[%emt 0:07:16][%cal Oc8g4]} 23. Qc7 {[%emt 0:07:56]} Qh4 {[%emt 0:18:05]} (23... Bg4 $5 24. Qg3 (24. hxg4 hxg4 25. Qg3 Rh6+ 26. Kg1 Qh5 $16) 24... Qh6 $11) 24. Qf4 {[%emt 0:12:21]} ({White should try} 24. Rac1 $14) 24... Qxf4 $11 {[%emt 0:02:37]} 25. exf4 {[%emt 0:00:04][%cal Of1e1]} Rf6 {[%emt 0:00:19]} 26. Rfe1 {[%emt 0:05:03]} Kf8 {[%emt 0:02:26] Prevents Re8+.} 27. Rac1 {[%emt 0:02:31]} g6 {[%emt 0:05:51]} 28. Kh2 {[%emt 0:02:03]} Rxf4 {[%emt 0:03:07]} 29. Rxc6 {[%emt 0:00:05]} Rxd4 {[%emt 0:00:13]} 30. Rd1 {[%emt 0:04:59]} Rxd1 {[%emt 0:00:32]} 31. Bxd1 $17 {[%emt 0:00:03][%mdl 4096] Endgame. KRB-KRB} a5 {[%emt 0:04:15]} 32. Kg3 {[%emt 0:02:16]} Be6 {[%emt 0:04:16]} 33. Kf4 {[%emt 0:01:45]} Ke7 {[%emt 0:11:21]} 34. a3 {[%emt 0:01:58]} Rb8 {[%emt 0:06:24]} 35. Rc5 {[%emt 0:02:10]} Rb2 {[%emt 0:00:06]} 36. Rxa5 {[%emt 0:02:16]} Rxf2+ {[%emt 0:00:20]} 37. Bf3 {[%emt 0:00:02]} Kf6 {[%emt 0:02:50] Black is more active.} 38. Ra6 {[%emt 0:00:39]} Rf1 {[%emt 0:01:03]} 39. h4 {[%emt 0:00:38]} Rh1 {[%emt 0:00:47]} (39... Ke7 $17 40. Ke5 Re1+ 41. Kf4 Rh1) 40. Kg3 $2 {[%emt 0:00:00] This move loses the game for White.} (40. Bxd5 $15 Rxh4+ 41. Kg3) 40... Ke5 $19 {[%emt 0:00:00]} 41. a4 {[%emt 0:11:08]} (41. Ra4 $142) 41... Kd4 {[%emt 0:01:11] White must now prevent ...Ke3.} 42. Ra8 $2 {[%emt 0:07:30]} (42. Rc6) 42... Ke3 {[%emt 0:01:24][%cal Og6g5]} 43. Re8 {[%emt 0:05:15] [#]} g5 $1 {[%emt 0:02:23][%csl Gh1][%cal Rg5h4][%mdl 512]} 44. Rxe6+ {[%emt 0:00:06]} fxe6 {[%emt 0:00:03]} 45. hxg5 {[%emt 0:00:04] KR-KB} h4+ {[%emt 0:02:50]} 46. Kg4 {[%emt 0:00:13] [#]} h3 $1 {[%emt 0:00:06] ( -> ...Kf2)} 47. g6 {[%emt 0:03:37]} Kf2 {[%emt 0:11:15]} ({Weaker is} 47... hxg2 48. Bxg2 Rh8 (48... Rg1 49. Kg3 $11) 49. Kg5 $17) 48. Kf4 {[%emt 0:06:51]} Ra1 {[%emt 0:01:11] Black mates.} 49. g7 {[%emt 0:00:42]} Rxa4+ {[%emt 0:00:14]} 50. Kg5 {[%emt 0:00:38]} Ra8 {[%emt 0:01:30]} ({Inferior is} 50... hxg2 51. Bxg2 Kg3 52. Bf1 $11) 51. gxh3 {[%emt 0:00:18]} Kxf3 {[%emt 0:00:07]} 52. h4 {[%emt 0:00:05]} Rg8 {[%emt 0:00:05] Weighted Error Value: White=0.44/Black=0.04 (flawless) .  Loses game:     	White=1     	---        Mistake:       	White=3     	Black=1      Inaccurate:     	White=3     	Black=3      OK:         	White=12    	Black=19     Best:        	White=2     	Black=5} 0-1

[Event "FIDE Womens Candidates 2024"]
[Site "Toronto"]
[Date "2024.04.06"]
[Round "3.3"]
[White "Lei, Tingjie"]
[Black "Goryachkina, Aleksandra"]
[Result "1/2-1/2"]
[ECO "C51"]
[WhiteElo "2550"]
[BlackElo "2553"]
[Annotator "TA"]
[PlyCount "89"]
[EventDate "2024.04.02"]
[EventType "tourn"]
[EventCountry "CAN"]
[SourceTitle "playchess.com"]
[Source "ChessBase"]
[SourceQuality "1"]
[TimeControl "40/5400+30:1800+30"]

{[%evp 12,89,0,-26,-11,-21,-19,2,-10,-20,-15,-7,-2,-10,4,0,11,12,7,0,0,12,29,19,23,7,22,7,21,26,29,28,62,8,15,0,18,30,50,52,50,41,63,33,60,47,45,39,39,16,16,0,0,0,0,0,0,0,0,0,0,0,0,0,0,0,0,0,0,0,0,0,0,0,0,0,0,0,4,0]} 1. e4 {[%emt 0:00:07]} e5 {[%emt 0:00:14]} 2. Nf3 {[%emt 0:00:14]} Nc6 {[%emt 0:00:13]} 3. Bc4 {[%emt 0:00:32]} Bc5 {[%emt 0:00:47]} 4. b4 {[%emt 0:00:42]} Bxb4 {[%emt 0:02:57]} 5. c3 {[%emt 0:00:07]} Be7 {[%emt 0:01:10]} 6. d4 {[%emt 0:00:13]} Na5 {[%emt 0:03:08]} 7. Be2 {[%emt 0:00:08]} d6 {[%emt 0:01:35]} 8. Qa4+ {[%emt 0:00:21]} c6 {[%emt 0:00:36]} 9. dxe5 {[%emt 0:00:10]} dxe5 {[%emt 0:01:23]} 10. Nxe5 {[%emt 0:00:10]} Nf6 {[%emt 0:03:28]} 11. O-O {[%emt 0:00:09]} Qc7 {[%emt 0:04:10]} 12. Nf3 {[%emt 0:00:29]} b5 {[%emt 0:11:28]} 13. Qc2 {[%emt 0:00:45]} O-O {[%emt 0:02:10]} 14. Re1 {[%emt 0:02:06]} Ng4 {[%emt 0:09:02]} 15. h3 {[%emt 0:05:58]} Ne5 {[%emt 0:00:43]} 16. Nbd2 {[%emt 0:00:17]} Ng6 {[%emt 0:10:52]} 17. a4 {[%emt 0:16:47]} Bd7 {[%emt 0:02:39]} 18. Bf1 {[%emt 0:07:10]} Nb7 {[%emt 0:01:58]} 19. Nd4 {[%emt 0:07:35]} a6 {[%emt 0:04:29]} 20. Nf5 {[%emt 0:02:34]} Bf6 {[%emt 0:02:46]} 21. Bb2 {[%emt 0:02:38]} Rfe8 {[%emt 0:03:11]} 22. Rab1 {[%emt 0:14:04]} (22. c4 $14) 22... Nc5 $11 {[%emt 0:06:58]} 23. c4 {[%emt 0:04:37]} (23. axb5 {keeps more tension.} axb5 24. c4 Ra2 25. cxb5 cxb5 26. Ne3) 23... Bxb2 {[%emt 0:01:36]} (23... Nxa4 $6 24. Bxf6 gxf6 25. cxb5 axb5 26. Bxb5 $16) 24. Qxb2 {[%emt 0:02:25]} Qe5 {[%emt 0:01:10]} ({And not} 24... Nxa4 25. Qxg7#) 25. Qxe5 {[%emt 0:07:57]} (25. axb5 Qxb2 (25... Bxf5 26. exf5 Qxf5 27. b6 $18) 26. Rxb2 Bxf5 27. exf5 Rxe1 $17) 25... Rxe5 {[%emt 0:04:08]} 26. axb5 {[%emt 0:00:36]} axb5 {[%emt 0:03:47]} 27. Ng3 {[%emt 0:07:40][%cal Rc4b5,Bf5g3,Bg3e2,Be2d4][%mdl 32]} h5 {[%emt 0:07:56][%cal Bh7h5,Bh5h4][%mdl 32]} 28. cxb5 {[%emt 0:04:54] [#] And now Rec1 would win.} h4 {[%emt 0:01:50]} 29. Ne2 {[%emt 0:02:19]} cxb5 {[%emt 0:00:50][%cal Oa8b8]} 30. Nd4 {[%emt 0:05:15]} Rb8 {[%emt 0:02:34] The position is equal.} 31. Bxb5 {[%emt 0:02:38]} Bxb5 {[%emt 0:00:35]} 32. Rxb5 {[%emt 0:00:05]} Rxb5 {[%emt 0:00:37]} 33. Nxb5 {[%emt 0:00:05]} Nxe4 {[%emt 0:01:16]} 34. Rxe4 {[%emt 0:00:13]} Rxb5 {[%emt 0:00:02][%mdl 4096] Endgame. KRN-KRN} 35. Nf3 {[%emt 0:00:09]} Rh5 {[%emt 0:01:13]} 36. Rb4 {[%emt 0:01:06]} f6 {[%emt 0:00:56]} 37. Kf1 {[%emt 0:00:13]} Kf7 {[%emt 0:00:23]} 38. Ke2 {[%emt 0:00:44]} Kg8 {[%emt 0:00:43]} 39. Ra4 {[%emt 0:01:49]} Kf7 {[%emt 0:00:13]} 40. Rg4 {[%emt 0:00:00]} Rh8 {[%emt 0:00:00]} 41. Re4 {[%emt 0:00:51]} Rh5 {[%emt 0:01:55]} 42. Ra4 {[%emt 0:00:20]} Kg8 {[%emt 0:00:34]} 43. Rg4 {[%emt 0:00:23]} Kf7 {[%emt 0:00:26]} 44. Ra4 {[%emt 0:00:07]} Kg8 {[%emt 0:00:46]} 45. Rg4 {[%emt 0:01:37] Weighted Error Value: White=0.09 (flawless) /Black=0.06 (flawless) .  Mistake:       	White=1     	---        Inaccurate:     	White=1     	Black=2      OK:         	White=12    	Black=22     Best:        	---       	Black=1} 1/2-1/2

[Event "FIDE Womens Candidates 2024"]
[Site "Toronto"]
[Date "2024.04.09"]
[Round "5.2"]
[White "Lei, Tingjie"]
[Black "Lagno, Kateryna"]
[Result "1/2-1/2"]
[ECO "C55"]
[WhiteElo "2550"]
[BlackElo "2542"]
[Annotator "TA"]
[PlyCount "89"]
[EventDate "2024.04.02"]
[EventType "tourn"]
[EventCountry "CAN"]
[SourceTitle "playchess.com"]
[Source "ChessBase"]
[SourceQuality "1"]
[TimeControl "40/5400+30:1800+30"]

{[%evp 16,89,20,21,16,12,14,10,9,15,22,0,30,28,33,14,32,17,18,25,35,36,41,0,0,0,0,-6,0,-12,-5,-24,-4,-92,-95,-104,-104,-133,-107,-142,-133,-132,-139,-157,-151,-287,-314,-281,-166,-225,-229,-254,-202,-228,-172,-175,-125,-110,-82,-153,-135,-151,-153,-183,-16,-7,-11,-6,0,0,5302,-28,78,21,33,25]} 1. e4 {[%emt 0:00:05]} e5 {[%emt 0:00:12]} 2. Nf3 {[%emt 0:00:13]} Nc6 {[%emt 0:00:07]} 3. Bc4 {[%emt 0:00:16]} Nf6 {[%emt 0:00:17]} 4. d3 {[%emt 0:00:09]} Be7 {[%emt 0:00:23]} 5. O-O {[%emt 0:00:28]} O-O {[%emt 0:00:12]} 6. Bb3 {[%emt 0:00:15]} d6 {[%emt 0:00:48]} 7. c3 {[%emt 0:00:15]} Na5 {[%emt 0:01:48]} 8. Bc2 {[%emt 0:00:11]} c5 {[%emt 0:00:07]} 9. Re1 {[%emt 0:01:44]} Nc6 {[%emt 0:00:40]} 10. a3 {[%emt 0:01:26]} Re8 {[%emt 0:01:42]} 11. b4 {[%emt 0:04:46]} a6 {[%emt 0:01:26] The position is equal.} 12. Nbd2 {[%emt 0:03:35][%cal Bb1d2,Bd2f1,Bf1g3][%mdl 32]} h6 {[%emt 0:06:47]} 13. h3 {[%emt 0:14:27]} Bf8 {[%emt 0:18:10]} 14. Bb2 {[%emt 0:12:18]} Nh5 {[%emt 0:03:15]} 15. Nf1 {[%emt 0:04:45]} Nf4 {[%emt 0:08:09]} 16. Ng3 {[%emt 0:03:29]} Qf6 {[%emt 0:08:44]} 17. d4 {[%emt 0:03:47]} exd4 {[%emt 0:03:09]} 18. cxd4 {[%emt 0:00:05]} cxb4 {[%emt 0:02:54]} 19. axb4 {[%emt 0:07:04]} Nxb4 {[%emt 0:00:27][%cal Of4h3] ...Nxh3+! is the strong threat.} 20. Bb1 {[%emt 0:00:09]} a5 {[%emt 0:05:39]} 21. Bc1 {[%emt 0:09:55] Bxf4 would now be deadly.} Ng6 {[%emt 0:06:06]} 22. Nh5 {[%emt 0:03:33]} Qd8 {[%emt 0:00:04]} 23. Bd2 {[%emt 0:04:41]} Bd7 {[%emt 0:05:02]} 24. d5 {[%emt 0:07:27]} (24. Nh2 $11) 24... Ne5 $1 $17 {[%emt 0:03:07]} 25. Nd4 {[%emt 0:01:19]} Qh4 {[%emt 0:03:05]} 26. Ng3 {[%emt 0:04:23] [#]} g6 $1 {[%emt 0:00:44] Repels Ndf5} 27. Bxb4 {[%emt 0:06:28]} axb4 {[%emt 0:00:04]} 28. Rxa8 {[%emt 0:00:06]} Rxa8 {[%emt 0:00:04]} 29. Qb3 {[%emt 0:00:14]} Bg7 {[%emt 0:00:55] White must now prevent ...Ra3.} 30. Nde2 {[%emt 0:00:43] [#]} (30. Nge2 $17 {might work better.}) 30... Bxh3 $1 $19 {[%emt 0:10:30][%cal Oe5g4][%mdl 512]} 31. Qxb4 {[%emt 0:02:33]} Bg4 {[%emt 0:02:47]} (31... Ng4 $142 32. Rf1 Bxg2 33. Kxg2 Qh2+ 34. Kf3 Ra3+ 35. Qxa3 (35. Kxg4 h5+ 36. Kg5 Bf6+ 37. Kh6 Qh4 38. Qxa3 Bg7#) 35... Ne5+ 36. Ke3 (36. Kf4 Qh4+ 37. Ke3 Nc4+ 38. Kf3 Nxa3 $19) 36... Nc4+ 37. Kf3 Nxa3) 32. Qxd6 {[%emt 0:02:24]} (32. Nd4 $142) 32... h5 {[%emt 0:00:30]} 33. Qc7 {[%emt 0:01:59]} b5 {[%emt 0:01:21]} 34. d6 {[%emt 0:00:40]} Nc4 {[%emt 0:04:27]} 35. Qb7 {[%emt 0:00:43]} Rd8 {[%emt 0:00:24]} (35... Nxd6 $2 36. Qxa8+ Kh7 37. Qd5 $18) (35... Qd8 $19 {Strongly threatening ...Qa5.} 36. Qxb5 Nxd6) 36. Qxb5 $17 {[%emt 0:00:25]} Nxd6 {[%emt 0:00:04]} 37. Qb3 {[%emt 0:01:04]} ({White should try} 37. Qd3) 37... Be5 {[%emt 0:00:44] This pair of bishops is nice.} 38. Qd5 {[%emt 0:00:52]} Qg5 {[%emt 0:02:20] Hoping for ...Ne8.} 39. Nf5 {[%emt 0:00:30]} Nxf5 $2 {[%emt 0:00:57]} ({Better is} 39... Bf3 $19 {[%csl Gf3][%cal Rg5g2]} 40. Neg3 Qf6 (40... Bc3 41. Nh6+ Qxh6 42. Re3 $17)) 40. Qxe5 $11 {[%emt 0:00:00]} Qd2 {[%emt 0:00:00][%csl LRe1,LRe2]} 41. Qc3 $1 {[%emt 0:02:36]} Bxe2 {[%emt 0:07:15]} 42. Qxd2 {[%emt 0:00:05]} Rd4 {[%emt 0:00:04][%mdl 8192] [#]} (42... Rxd2 $11 43. exf5 gxf5) 43. Qd3 $2 Rxd3 {[%emt 0:00:30]} (43... Bxd3 $11 44. exf5 Bxb1 45. Rxb1 Kg7 (45... gxf5 46. Rb5 $11)) 44. exf5 {[%emt 0:00:41]} ({Much weaker is} 44. Rxe2 Rd1+ 45. Kh2 Nh6 $11 (45... Rxb1 46. exf5 g5 47. Re4 $11)) (44. Bxd3 $16 Bxd3 45. exf5 Bxf5 46. g3) 44... Rd2 {[%emt 0:01:20]} 45. fxg6 {[%emt 0:00:09] Weighted Error Value: White=0.40/Black=0.24 (precise) .  Loses game:     	---       	Black=1      Missed win:     	White=1     	Black=1      Mistake:       	White=4     	Black=3      Inaccurate:     	White=2     	Black=1      OK:         	White=11    	Black=8      Best:        	White=1     	---        Strong:       	White=1     	Black=2      Brilliant:      	---       	Black=1} 1/2-1/2

[Event "FIDE Womens Candidates 2024"]
[Site "Toronto"]
[Date "2024.04.11"]
[Round "7.4"]
[White "Lei, Tingjie"]
[Black "Vaishali, Rameshbabu"]
[Result "1-0"]
[ECO "C54"]
[WhiteElo "2550"]
[BlackElo "2475"]
[Annotator "TA"]
[PlyCount "71"]
[EventDate "2024.04.02"]
[EventType "tourn"]
[EventCountry "CAN"]
[SourceTitle "playchess.com"]
[Source "ChessBase"]
[SourceQuality "1"]
[TimeControl "40/5400+30:1800+30"]

{[%evp 13,71,7,17,11,17,0,12,6,22,8,45,21,12,15,20,0,9,0,0,0,14,-4,0,0,0,0,0,-3,0,-8,0,0,0,-18,0,0,0,0,21,10,44,45,43,37,276,18,4,14,9,12,191,199,289,281,2327,1978,1690,1629,29994,1332]} 1. e4 {[%emt 0:00:04]} e5 {[%emt 0:00:23]} 2. Nf3 {[%emt 0:00:11]} Nc6 {[%emt 0:00:05]} 3. Bc4 {[%emt 0:00:09]} Nf6 {[%emt 0:00:06]} 4. d3 {[%emt 0:00:04]} Bc5 {[%emt 0:00:08]} 5. O-O {[%emt 0:00:26]} d6 {[%emt 0:00:15]} 6. c3 {[%emt 0:00:23]} a5 {[%emt 0:00:19] C54: Giuoco Piano: 4 c3 Nf6, main lines with 5 d4 and 5 d3.} 7. Nbd2 {[%emt 0:01:37]} O-O {[%emt 0:00:24]} 8. Re1 {[%emt 0:05:13]} Be6 {[%emt 0:01:20]} 9. h3 {[%emt 0:09:18]} h6 {[%emt 0:03:28]} 10. Bb5 {[%emt 0:05:08]} Ne7 {[%emt 0:02:34]} 11. d4 {[%emt 0:02:48]} Bb6 $146 {[%emt 0:01:48]} ({Predecessor:} 11... exd4 12. cxd4 Ba7 13. Bd3 Ng6 14. Nf1 d5 15. e5 Ne4 16. Ng3 Nxg3 17. fxg3 c5 18. dxc5 Bxc5+ {0-1 Volokitin,A (2677)-Petrosyan,M (2620) Wch Blitz Warsaw 2021 (10)}) 12. Bd3 {[%emt 0:09:04]} Re8 {[%emt 0:01:39]} 13. Nf1 {[%emt 0:04:21]} exd4 {[%emt 0:00:56]} 14. Nxd4 {[%emt 0:00:47]} Ng6 {[%emt 0:04:41]} 15. Ng3 {[%emt 0:04:37]} Bd7 {[%emt 0:11:29]} 16. Bd2 {[%emt 0:03:06]} Ne5 {[%emt 0:15:45]} 17. Bf1 {[%emt 0:03:03]} d5 {[%emt 0:05:31]} 18. exd5 {[%emt 0:12:01]} Nxd5 {[%emt 0:00:35]} 19. Qb3 {[%emt 0:02:10]} c6 {[%emt 0:02:40]} 20. Ne4 {[%emt 0:23:22]} Qc7 {[%emt 0:20:28]} 21. a4 {[%emt 0:00:00]} Rad8 {[%emt 0:06:18]} 22. Rad1 {[%emt 0:00:00]} Ng6 {[%emt 0:03:57]} 23. Bc1 {[%emt 0:00:00]} Ba7 {[%emt 0:05:20]} 24. c4 {[%emt 0:00:00]} Nb4 {[%emt 0:03:52]} 25. c5 {[%emt 0:00:00]} Nd5 {[%emt 0:02:01]} 26. Bc4 {[%emt 0:00:14]} Bc8 {[%emt 0:04:56]} 27. Bxd5 {[%emt 0:01:51]} cxd5 {[%emt 0:01:47]} (27... Rxd5 $2 28. Nf6+ gxf6 29. Rxe8+ Kh7 30. Qe3 $18) 28. Nb5 {[%emt 0:00:06]} Qb8 $2 {[%emt 0:00:04] [#]} (28... Qe7 $14) 29. Nxa7 $2 {[%emt 0:05:27]} ({Resist} 29. Rxd5 $6 Be6 30. Rxd8 Qxd8 $18) (29. Qxd5 $1 $18 Bxh3 (29... Rxd5 30. Nf6+ gxf6 31. Rxe8+ Kg7 32. Rxd5 $18) 30. Ned6 Rxe1+ 31. Rxe1) 29... Qxa7 $11 {[%emt 0:00:18]} 30. Rxd5 {[%emt 0:00:16]} Be6 {[%emt 0:00:41]} 31. Rxd8 {[%emt 0:00:08]} Rxd8 $2 {[%emt 0:00:03]} (31... Bxb3 $11 32. Rxe8+ Kh7) 32. Qc3 $18 {[%emt 0:03:46]} b6 {[%emt 0:01:07]} (32... Qa8 {was necessary.} 33. b3 Rd5 34. Bxh6 gxh6 35. Nf6+ Kf8 36. Rxe6 Rd1+ 37. Re1 Rxe1+ 38. Qxe1 Qd8) 33. b3 $18 {[%emt 0:02:23]} Bf5 $2 {[%emt 0:01:28]} (33... Kh7 34. Bb2 Rg8) 34. Nf6+ $18 {[%emt 0:02:22]} Kh8 {[%emt 0:00:30]} 35. Bxh6 {[%emt 0:01:36]} bxc5 {[%emt 0:00:13]} 36. Nh5 {[%emt 0:01:09]} (36. Bxg7+ $142 Kxg7 37. Ne8+ Kh6 38. Qg7+ Kh5 39. Nf6+ (39. g4+ Bxg4 40. h4 Kxh4 41. Qh6+ Bh5 42. Re4+ Kh3 43. Qxh5+ Nh4 44. Rxh4#) (39. Qf6 Rxe8 40. Qxf5+ Kh6 $18) 39... Kg5 40. h4+ Kxh4 41. Qh6#) 1-0

[Event "FIDE Womens Candidates 2024"]
[Site "Toronto"]
[Date "2024.04.14"]
[Round "9.1"]
[White "Lei, Tingjie"]
[Black "Salimova, Nurgyul"]
[Result "1/2-1/2"]
[ECO "C41"]
[WhiteElo "2550"]
[BlackElo "2432"]
[Annotator "TA"]
[PlyCount "72"]
[EventDate "2024.04.02"]
[EventType "tourn"]
[EventCountry "CAN"]
[SourceTitle "playchess.com"]
[Source "ChessBase"]
[SourceQuality "1"]
[TimeControl "40/5400+30:1800+30"]

{[%evp 9,72,10,27,13,25,0,0,-22,22,2,0,-35,52,43,43,66,68,38,45,55,56,59,65,43,25,4,7,9,0,0,6,15,4,26,0,0,0,0,0,0,12,6,3,0,8,5,20,0,0,0,0,0,0,0,7,4,6,0,0,0,8,0,0,0,15]} 1. e4 {[%emt 0:00:09]} d6 {[%emt 0:00:25]} 2. d4 {[%emt 0:00:42]} Nf6 {[%emt 0:00:11]} 3. Nc3 {[%emt 0:01:22]} e5 {[%emt 0:00:30]} 4. Nf3 {[%emt 0:01:02]} Nbd7 {[%emt 0:00:22][%cal Bb8d7,Bd7c5,Bc5e6][%mdl 32]} 5. Rg1 {[%emt 0:03:03]} c6 {[%emt 0:02:49]} 6. g4 {[%emt 0:01:15]} h6 {[%emt 0:02:17]} 7. h4 {[%emt 0:06:08]} exd4 {[%emt 0:20:54]} 8. Qxd4 {[%emt 0:07:26]} Nc5 {[%emt 0:08:41]} 9. e5 {[%emt 0:11:57]} Ne6 {[%emt 0:04:14]} 10. Qd3 {[%emt 0:07:09]} Nd7 {[%emt 0:04:48]} (10... dxe5 $15 11. Qxd8+ (11. Nxe5 Qxd3 12. Bxd3 Bd6 $15) 11... Nxd8 12. Nxe5 Bd6) 11. exd6 $14 {[%emt 0:08:07]} Ndc5 {[%emt 0:00:06][%csl LRd3,LRd6]} 12. Qe2 {[%emt 0:00:21]} Bxd6 {[%emt 0:02:01]} 13. Be3 {[%emt 0:00:05]} Be7 {[%emt 0:06:01]} 14. g5 {[%emt 0:04:16]} hxg5 {[%emt 0:01:18]} 15. hxg5 {[%emt 0:00:04]} Qd6 {[%emt 0:05:39]} 16. Bd2 {[%emt 0:13:16]} Nf4 {[%emt 0:08:11]} 17. Qe5 {[%emt 0:04:38]} Ng6 {[%emt 0:02:44]} 18. Qxd6 {[%emt 0:01:27]} (18. Qxg7 $2 {loses.} Ne6 19. Nb5 cxb5 $19 (19... Nxg7 $2 20. Nxd6+ Bxd6 21. O-O-O $19)) 18... Bxd6 {[%emt 0:00:04]} 19. O-O-O {[%emt 0:00:40]} Be6 {[%emt 0:10:57]} 20. Be3 {[%emt 0:05:16]} Bf4 {[%emt 0:01:52]} 21. Bxf4 {[%emt 0:00:06]} Nxf4 {[%emt 0:00:05]} 22. b4 {[%emt 0:03:48] The position is equal.} Nd7 {[%emt 0:00:44]} 23. Nd4 {[%emt 0:01:26][%cal Og5g6]} O-O-O {[%emt 0:02:52]} 24. g6 {[%emt 0:09:29]} fxg6 {[%emt 0:02:00]} 25. Nxe6 {[%emt 0:00:12]} Nxe6 {[%emt 0:00:05]} 26. Rxg6 {[%emt 0:01:08]} Ndf8 {[%emt 0:00:20]} 27. Rg1 {[%emt 0:01:36]} Rh4 {[%emt 0:01:50]} 28. a3 {[%emt 0:01:56]} Rxd1+ {[%emt 0:00:20]} 29. Kxd1 {[%emt 0:00:10]} Rf4 {[%emt 0:02:41]} 30. Bh3 {[%emt 0:03:33]} Kc7 {[%emt 0:01:31]} 31. Ke2 {[%emt 0:01:06]} Rc4 {[%emt 0:01:43]} 32. Kd2 {[%emt 0:00:28]} Rd4+ {[%emt 0:02:29]} 33. Ke3 {[%emt 0:00:07][%cal Og1g7] next Rxg7+! is good for White.} Rc4 {[%emt 0:00:24]} 34. Kd2 {[%emt 0:00:04]} Rd4+ {[%emt 0:00:05]} 35. Ke3 {[%emt 0:00:22][%cal Og1g7]} Rc4 {[%emt 0:00:05]} 36. Kd2 {[%emt 0:00:07]} Rd4+ {[%emt 0:00:07] Weighted Error Value: White=0.07 (flawless) /Black=0.09 (flawless) .  Mistake:       	---       	Black=1      Inaccurate:     	White=2     	Black=1      OK:         	White=11    	Black=20     Best:        	White=1     	Black=1} 1/2-1/2